[Event "*** Titled Tuesday Blitz"]
[Site "Chess.com"]
[Date "2019.04.02"]
[Round "7"]
[White "chessking2151"]
[Black "Alex_Terzi"]
[Result "1-0"]
[WhiteElo "2578"]
[BlackElo "2417"]
[TimeControl "180+2"]
[EndTime "15:34:18 PDT"]
[Termination "chessking2151 won by resignation"]

1. Nf3 {[%clk 0:03:01.9]} 1... Nf6 {[%clk 0:03:00.4]} 2. c4 {[%clk 0:02:58.1]}
2... g6 {[%clk 0:02:58.7]} 3. Nc3 {[%clk 0:02:45.5]} 3... Bg7 {[%clk 0:02:59.6]}
4. g3 {[%clk 0:02:46.2]} 4... O-O {[%clk 0:03:00]} 5. Bg2 {[%clk 0:02:47.2]}
5... d6 {[%clk 0:03:00.9]} 6. O-O {[%clk 0:02:47.8]} 6... Nc6 {[%clk 0:03:01.7]}
7. d4 {[%clk 0:02:46.1]} 7... Bf5 {[%clk 0:03:02.3]} 8. Bg5 {[%clk 0:02:35.8]}
8... Ne4 {[%clk 0:03:00.9]} 9. Bf4 {[%clk 0:02:33.5]} 9... Nxc3 {[%clk
0:02:59.9]} 10. bxc3 {[%clk 0:02:34.1]} 10... Na5 {[%clk 0:03:00.2]} 11. Qa4
{[%clk 0:02:33.7]} 11... c5 {[%clk 0:02:52.1]} 12. dxc5 {[%clk 0:02:29.7]} 12...
dxc5 {[%clk 0:02:40.6]} 13. Rfd1 {[%clk 0:02:29.4]} 13... Qb6 {[%clk 0:02:41.3]}
14. Nh4 {[%clk 0:02:20.1]} 14... Rfd8 {[%clk 0:02:21.2]} 15. Nxf5 {[%clk
0:02:16.3]} 15... Rxd1+ {[%clk 0:02:21.6]} 16. Rxd1 {[%clk 0:02:13.1]} 16...
gxf5 {[%clk 0:02:22.8]} 17. Qc2 {[%clk 0:01:47.7]} 17... Qf6 {[%clk 0:01:58.4]}
18. Qa4 {[%clk 0:00:49.1]} 18... Qxc3 {[%clk 0:01:43.5]} 19. Bd2 {[%clk
0:00:43.7]} 19... Qxc4 {[%clk 0:01:42.6]} 20. Qxa5 {[%clk 0:00:41]} 20... Qxe2
{[%clk 0:01:41.3]} 21. Re1 {[%clk 0:00:40.9]} 21... Qd3 {[%clk 0:01:32.3]} 22.
Bf1 {[%clk 0:00:41.8]} 22... Qd6 {[%clk 0:01:22.5]} 23. Bf4 {[%clk 0:00:42]}
23... e5 {[%clk 0:01:23.6]} 24. Be3 {[%clk 0:00:42.1]} 24... b6 {[%clk
0:01:24.2]} 25. Qc3 {[%clk 0:00:42.9]} 25... e4 {[%clk 0:01:24.4]} 26. Qc2
{[%clk 0:00:42.8]} 26... Rd8 {[%clk 0:01:23.5]} 27. Be2 {[%clk 0:00:32.8]} 27...
Bd4 {[%clk 0:01:23.8]} 28. Rd1 {[%clk 0:00:29.1]} 28... Qf6 {[%clk 0:01:24.3]}
29. Qd2 {[%clk 0:00:20.3]} 29... Rd6 {[%clk 0:01:24.9]} 30. Kg2 {[%clk
0:00:19.1]} 30... Be5 {[%clk 0:01:22.8]} 31. Qc1 {[%clk 0:00:19.4]} 31... Bd4
{[%clk 0:01:20.7]} 32. Bf4 {[%clk 0:00:19.5]} 32... Rd7 {[%clk 0:01:19.9]} 33.
Bb5 {[%clk 0:00:20.6]} 33... Rd5 {[%clk 0:01:18]} 34. Bc4 {[%clk 0:00:21.1]}
34... Rd7 {[%clk 0:01:18.2]} 35. Bg5 {[%clk 0:00:22.2]} 35... Qg6 {[%clk
0:01:14.4]} 36. Qf4 {[%clk 0:00:20.8]} 36... Kg7 {[%clk 0:00:54.5]} 37. Bh4
{[%clk 0:00:10.8]} 37... f6 {[%clk 0:00:50.1]} 38. Qb8 {[%clk 0:00:09.4]} 38...
Kh6 {[%clk 0:00:42.5]} 39. Qf4+ {[%clk 0:00:09.5]} 39... Kg7 {[%clk 0:00:42.8]}
40. h3 {[%clk 0:00:09.8]} 40... Qh5 {[%clk 0:00:29.2]} 41. Rd2 {[%clk
0:00:10.4]} 41... Qg6 {[%clk 0:00:19.7]} 42. Be6 {[%clk 0:00:09.6]} 42... Re7
{[%clk 0:00:16.1]} 43. Bxf5 {[%clk 0:00:10.8]} 43... Qe8 {[%clk 0:00:16.8]} 44.
Qg4+ {[%clk 0:00:11.4]} 44... Kh8 {[%clk 0:00:17.9]} 45. Rxd4 {[%clk 0:00:11.9]}
1-0

[Event "*** Titled Tuesday Blitz"]
[Site "Chess.com"]
[Date "2019.04.02"]
[Round "7"]
[White "nochewycandy"]
[Black "SoltaniciR"]
[Result "0-1"]
[WhiteElo "2368"]
[BlackElo "2579"]
[TimeControl "180+2"]
[EndTime "15:34:18 PDT"]
[Termination "SoltaniciR won by resignation"]

1. c4 {[%clk 0:03:01.9]} 1... c5 {[%clk 0:02:59]} 2. g3 {[%clk 0:03:02.6]} 2...
Nc6 {[%clk 0:02:58.4]} 3. Bg2 {[%clk 0:03:04.5]} 3... g6 {[%clk 0:02:59.1]} 4.
Nc3 {[%clk 0:03:05.2]} 4... Bg7 {[%clk 0:03:00.1]} 5. a3 {[%clk 0:03:07.1]} 5...
e6 {[%clk 0:02:44]} 6. b4 {[%clk 0:03:07.5]} 6... cxb4 {[%clk 0:02:41.5]} 7.
axb4 {[%clk 0:03:08.1]} 7... Nxb4 {[%clk 0:02:42.3]} 8. Ba3 {[%clk 0:03:09.1]}
8... Nc6 {[%clk 0:02:40.3]} 9. Nb5 {[%clk 0:03:10.2]} 9... Bf8 {[%clk
0:02:38.6]} 10. Bd6 {[%clk 0:03:00.3]} 10... Bxd6 {[%clk 0:02:36.9]} 11. Nxd6+
{[%clk 0:03:02.2]} 11... Kf8 {[%clk 0:02:31.9]} 12. Nf3 {[%clk 0:02:55]} 12...
Kg7 {[%clk 0:02:23.8]} 13. d4 {[%clk 0:02:49.7]} 13... Nf6 {[%clk 0:02:12.4]}
14. O-O {[%clk 0:02:29]} 14... Ne8 {[%clk 0:02:13.1]} 15. Nxe8+ {[%clk
0:02:06.6]} 15... Rxe8 {[%clk 0:02:11.8]} 16. Ne5 {[%clk 0:02:08.5]} 16... f6
{[%clk 0:02:06.3]} 17. Nxc6 {[%clk 0:02:06.6]} 17... dxc6 {[%clk 0:02:07.2]} 18.
e3 {[%clk 0:02:05]} 18... e5 {[%clk 0:01:38.2]} 19. dxe5 {[%clk 0:01:56.5]}
19... fxe5 {[%clk 0:01:39.3]} 20. Qa4 {[%clk 0:01:53.4]} 20... Bf5 {[%clk
0:01:28.1]} 21. c5 {[%clk 0:01:45.1]} 21... Qe7 {[%clk 0:01:21.6]} 22. Rac1
{[%clk 0:01:29]} 22... Bd3 {[%clk 0:01:07.6]} 23. Rfd1 {[%clk 0:01:29.1]} 23...
e4 {[%clk 0:01:08.5]} 24. f4 {[%clk 0:01:01.7]} 24... Red8 {[%clk 0:01:05]} 25.
Qb4 {[%clk 0:00:58.2]} 25... Rd7 {[%clk 0:01:02.3]} 26. Bh3 {[%clk 0:00:57.1]}
26... Rd5 {[%clk 0:01:03.3]} 27. Bf1 {[%clk 0:00:53.1]} 27... Rad8 {[%clk
0:01:03.1]} 28. Bxd3 {[%clk 0:00:52.7]} 28... Rxd3 {[%clk 0:01:03.3]} 29. Rxd3
{[%clk 0:00:52.2]} 29... exd3 {[%clk 0:00:57.9]} 30. Kf2 {[%clk 0:00:51.1]}
30... b5 {[%clk 0:00:53.5]} 31. Rd1 {[%clk 0:00:21.1]} 31... Rd5 {[%clk
0:00:54.2]} 32. Qc3+ {[%clk 0:00:19.7]} 32... Kg8 {[%clk 0:00:51.8]} 33. Rxd3
{[%clk 0:00:20.9]} 33... Qxc5 {[%clk 0:00:48.3]} 34. Qxc5 {[%clk 0:00:20.9]}
34... Rxc5 {[%clk 0:00:48.7]} 35. Rd8+ {[%clk 0:00:22.8]} 35... Kg7 {[%clk
0:00:47.8]} 36. Rd7+ {[%clk 0:00:24.7]} 36... Kf6 {[%clk 0:00:46.8]} 37. Rxa7
{[%clk 0:00:26.6]} 37... Rc2+ {[%clk 0:00:45]} 38. Kf3 {[%clk 0:00:27.9]} 38...
b4 {[%clk 0:00:46]} 39. e4 {[%clk 0:00:27.1]} 39... c5 {[%clk 0:00:44.4]} 40.
Ra6+ {[%clk 0:00:27]} 40... Ke7 {[%clk 0:00:44.8]} 41. g4 {[%clk 0:00:25.2]}
41... b3 {[%clk 0:00:44.8]} 42. e5 {[%clk 0:00:25]} 42... b2 {[%clk 0:00:43.3]}
43. Rb6 {[%clk 0:00:26]} 43... c4 {[%clk 0:00:44.5]} 44. Ke4 {[%clk 0:00:26.4]}
44... c3 {[%clk 0:00:45.7]} 45. f5 {[%clk 0:00:25.7]} 45... gxf5+ {[%clk
0:00:46.5]} 46. gxf5 {[%clk 0:00:26.5]} 46... Re2+ {[%clk 0:00:44]} 47. Kf4
{[%clk 0:00:26.6]} 47... c2 {[%clk 0:00:42.8]} 48. Rb7+ {[%clk 0:00:28]} 48...
Kd8 {[%clk 0:00:43.6]} 49. Rxh7 {[%clk 0:00:08.7]} 49... c1=Q+ {[%clk
0:00:44.1]} 50. Kf3 {[%clk 0:00:09.6]} 50... Qe3+ {[%clk 0:00:44]} 0-1

[Event "*** Titled Tuesday Blitz"]
[Site "Chess.com"]
[Date "2019.04.02"]
[Round "7"]
[White "MMSANCHEZ"]
[Black "medalja"]
[Result "1-0"]
[WhiteElo "2479"]
[BlackElo "2292"]
[TimeControl "180+2"]
[EndTime "15:34:20 PDT"]
[Termination "MMSANCHEZ won by resignation"]

1. d4 {[%clk 0:02:46]} 1... d5 {[%clk 0:03:00.7]} 2. Nf3 {[%clk 0:02:46.6]} 2...
Nf6 {[%clk 0:03:01.2]} 3. e3 {[%clk 0:02:47.6]} 3... e6 {[%clk 0:03:02.3]} 4.
Bd3 {[%clk 0:02:49.2]} 4... Be7 {[%clk 0:03:03.5]} 5. O-O {[%clk 0:02:50.8]}
5... O-O {[%clk 0:03:04.7]} 6. b3 {[%clk 0:02:52.4]} 6... b6 {[%clk 0:03:05.7]}
7. Bb2 {[%clk 0:02:53.9]} 7... c5 {[%clk 0:03:06.8]} 8. Nbd2 {[%clk 0:02:55.4]}
8... Nc6 {[%clk 0:03:07.4]} 9. Ne5 {[%clk 0:02:56.9]} 9... Bb7 {[%clk
0:03:07.5]} 10. f4 {[%clk 0:02:57.8]} 10... Nb4 {[%clk 0:03:06.7]} 11. Be2
{[%clk 0:02:58.5]} 11... cxd4 {[%clk 0:03:06.2]} 12. exd4 {[%clk 0:02:59.3]}
12... Ne4 {[%clk 0:03:07.4]} 13. a3 {[%clk 0:02:55.6]} 13... Nc6 {[%clk
0:02:55.7]} 14. Bd3 {[%clk 0:02:56.5]} 14... f6 {[%clk 0:02:54.6]} 15. Nxc6
{[%clk 0:02:51.9]} 15... Bxc6 {[%clk 0:02:56.5]} 16. Qe2 {[%clk 0:02:53.2]}
16... f5 {[%clk 0:02:52.5]} 17. Nf3 {[%clk 0:02:53.5]} 17... Bf6 {[%clk
0:02:49.3]} 18. a4 {[%clk 0:02:43.8]} 18... Rc8 {[%clk 0:02:48.7]} 19. a5 {[%clk
0:02:43.5]} 19... bxa5 {[%clk 0:02:49.6]} 20. Qe1 {[%clk 0:02:42.5]} 20... a4
{[%clk 0:02:49.7]} 21. bxa4 {[%clk 0:02:42.4]} 21... Rb8 {[%clk 0:02:45.4]} 22.
Ba3 {[%clk 0:02:43.1]} 22... Re8 {[%clk 0:02:41.2]} 23. a5 {[%clk 0:02:39]}
23... Bb5 {[%clk 0:02:39]} 24. Ne5 {[%clk 0:02:36.6]} 24... Qc8 {[%clk
0:02:31.8]} 25. Rb1 {[%clk 0:02:26.1]} 25... Ba4 {[%clk 0:01:50]} 26. Rb4 {[%clk
0:02:15.8]} 26... Rxb4 {[%clk 0:01:45.4]} 27. Qxb4 {[%clk 0:02:10.1]} 27... Bxe5
{[%clk 0:01:24.2]} 28. fxe5 {[%clk 0:02:02.4]} 28... Qc6 {[%clk 0:01:20.9]} 29.
c4 {[%clk 0:01:57.8]} 29... dxc4 {[%clk 0:01:20.7]} 30. Bxe4 {[%clk 0:01:58.4]}
30... Qxe4 {[%clk 0:01:13.5]} 31. Qxa4 {[%clk 0:01:58.8]} 31... Qxd4+ {[%clk
0:01:14.6]} 32. Kh1 {[%clk 0:02:00]} 32... Rd8 {[%clk 0:01:15.4]} 33. Bd6 {[%clk
0:01:58.2]} 33... h6 {[%clk 0:01:08.2]} 34. Rc1 {[%clk 0:01:48.4]} 34... Rc8
{[%clk 0:00:57.2]} 35. Qd7 {[%clk 0:01:48.2]} 35... Ra8 {[%clk 0:00:32.6]} 36.
Qxe6+ {[%clk 0:01:47.3]} 36... Kh7 {[%clk 0:00:34.5]} 37. Qxf5+ {[%clk
0:01:47.6]} 37... Kh8 {[%clk 0:00:35.9]} 38. h3 {[%clk 0:01:35.3]} 38... c3
{[%clk 0:00:36.8]} 39. Bc7 {[%clk 0:01:17.6]} 39... Re8 {[%clk 0:00:35.2]} 40.
e6 {[%clk 0:01:16.7]} 40... Qc4 {[%clk 0:00:31.8]} 41. Be5 {[%clk 0:01:11.8]}
41... Qxe6 {[%clk 0:00:29.7]} 42. Qxe6 {[%clk 0:01:09.5]} 42... Rxe6 {[%clk
0:00:31.6]} 43. Bxc3 {[%clk 0:01:09.7]} 43... Kh7 {[%clk 0:00:33.5]} 44. Bd4
{[%clk 0:01:07.8]} 44... Ra6 {[%clk 0:00:30.9]} 45. Rc5 {[%clk 0:01:08]} 45...
Kg6 {[%clk 0:00:28.6]} 46. Kg1 {[%clk 0:01:09.4]} 46... h5 {[%clk 0:00:29.4]}
47. Kf2 {[%clk 0:01:10.7]} 47... Kh6 {[%clk 0:00:30.9]} 48. Ke3 {[%clk
0:01:11.8]} 48... g6 {[%clk 0:00:32.8]} 49. Kd3 {[%clk 0:01:13.1]} 49... g5
{[%clk 0:00:28.1]} 50. Kc4 {[%clk 0:01:13.7]} 50... g4 {[%clk 0:00:29.8]} 51.
hxg4 {[%clk 0:01:12.6]} 51... hxg4 {[%clk 0:00:31.7]} 52. Be3+ {[%clk
0:01:13.3]} 52... Kh7 {[%clk 0:00:31.5]} 53. Rh5+ {[%clk 0:01:14.3]} 53... Kg6
{[%clk 0:00:31]} 54. Rg5+ {[%clk 0:01:15.2]} 54... Kf6 {[%clk 0:00:31.9]} 55.
Rc5 {[%clk 0:01:14.2]} 55... Re6 {[%clk 0:00:30.6]} 56. Bd4+ {[%clk 0:01:11.7]}
56... Kg6 {[%clk 0:00:31.1]} 57. Kd5 {[%clk 0:01:12.3]} 57... Re2 {[%clk
0:00:31.6]} 58. g3 {[%clk 0:01:09.7]} 58... Kf5 {[%clk 0:00:32.8]} 59. Kc6+
{[%clk 0:01:05.2]} 59... Ke4 {[%clk 0:00:33.3]} 60. Re5+ {[%clk 0:01:05.8]}
60... Kf3 {[%clk 0:00:35.2]} 61. Rxe2 {[%clk 0:01:04.7]} 61... Kxe2 {[%clk
0:00:37.1]} 62. Bxa7 {[%clk 0:01:05.7]} 62... Kf3 {[%clk 0:00:38.1]} 63. Bb8
{[%clk 0:01:07]} 1-0

[Event "*** Titled Tuesday Blitz"]
[Site "Chess.com"]
[Date "2019.04.02"]
[Round "7"]
[White "Sashadav97"]
[Black "cstevens1"]
[Result "1/2-1/2"]
[WhiteElo "2530"]
[BlackElo "2709"]
[TimeControl "180+2"]
[EndTime "15:34:32 PDT"]
[Termination "Game drawn by repetition"]

1. d4 {[%clk 0:03:01.9]} 1... Nf6 {[%clk 0:03:00.4]} 2. c4 {[%clk 0:03:03.1]}
2... Nc6 {[%clk 0:03:01.3]} 3. Nc3 {[%clk 0:03:02]} 3... e5 {[%clk 0:03:02.3]}
4. d5 {[%clk 0:03:03.4]} 4... Ne7 {[%clk 0:03:03.5]} 5. e4 {[%clk 0:03:05]} 5...
Ng6 {[%clk 0:03:04.7]} 6. h4 {[%clk 0:03:06.6]} 6... Bb4 {[%clk 0:03:05.6]} 7.
Bd3 {[%clk 0:03:06.4]} 7... Bxc3+ {[%clk 0:02:59.8]} 8. bxc3 {[%clk 0:03:07.2]}
8... h6 {[%clk 0:03:01.7]} 9. h5 {[%clk 0:03:05.7]} 9... Ne7 {[%clk 0:03:02.5]}
10. Ne2 {[%clk 0:03:01.8]} 10... d6 {[%clk 0:03:03.6]} 11. Ng3 {[%clk
0:03:02.8]} 11... O-O {[%clk 0:03:00.9]} 12. f3 {[%clk 0:02:57.3]} 12... Nh7
{[%clk 0:03:01.9]} 13. Nf5 {[%clk 0:02:57.1]} 13... Nxf5 {[%clk 0:01:48.3]} 14.
exf5 {[%clk 0:02:59]} 14... Nf6 {[%clk 0:01:30.7]} 15. Be4 {[%clk 0:02:56.6]}
15... Bd7 {[%clk 0:01:12.7]} 16. Be3 {[%clk 0:02:52.2]} 16... Qc8 {[%clk
0:01:10.7]} 17. g4 {[%clk 0:02:51.8]} 17... Nxe4 {[%clk 0:01:11.9]} 18. fxe4
{[%clk 0:02:52.9]} 18... f6 {[%clk 0:01:13.8]} 19. Qd2 {[%clk 0:02:52.5]} 19...
Kh7 {[%clk 0:01:12.3]} 20. Kf2 {[%clk 0:02:49.8]} 20... b6 {[%clk 0:01:12.7]}
21. g5 {[%clk 0:02:45.3]} 21... fxg5 {[%clk 0:01:12.1]} 22. Kg3 {[%clk
0:02:43.6]} 22... Rf6 {[%clk 0:00:51.1]} 23. c5 {[%clk 0:02:20.2]} 23... bxc5
{[%clk 0:00:51.3]} 24. Rab1 {[%clk 0:02:21.2]} 24... Qa6 {[%clk 0:00:37.5]} 25.
Rb2 {[%clk 0:02:05.4]} 25... Raf8 {[%clk 0:00:37.2]} 26. Qe2 {[%clk 0:01:49.7]}
26... Qa4 {[%clk 0:00:26.5]} 27. c4 {[%clk 0:01:48.2]} 27... Bc8 {[%clk
0:00:26.5]} 28. Rc1 {[%clk 0:01:42.4]} 28... Ba6 {[%clk 0:00:27.6]} 29. Qc2
{[%clk 0:01:38.4]} 29... Qxc2 {[%clk 0:00:27.8]} 30. Rcxc2 {[%clk 0:01:40.3]}
30... Rc8 {[%clk 0:00:27.1]} 31. Rb3 {[%clk 0:01:37.1]} 31... Ra8 {[%clk
0:00:25.3]} 32. Bd2 {[%clk 0:01:29.7]} 32... Rff8 {[%clk 0:00:25.6]} 33. Ba5
{[%clk 0:01:30.7]} 33... Rfc8 {[%clk 0:00:25.6]} 34. Kf3 {[%clk 0:01:29.7]}
34... c6 {[%clk 0:00:26.8]} 35. dxc6 {[%clk 0:01:23]} 35... Rxc6 {[%clk
0:00:28.7]} 36. Ke3 {[%clk 0:01:24.2]} 36... Kg8 {[%clk 0:00:29.7]} 37. Kd3
{[%clk 0:01:23.9]} 37... Kf7 {[%clk 0:00:31.1]} 38. Rcb2 {[%clk 0:01:25.1]}
38... Ke8 {[%clk 0:00:31.1]} 39. Rf2 {[%clk 0:00:44.4]} 39... Ke7 {[%clk
0:00:29.5]} 40. Rfb2 {[%clk 0:00:41.8]} 40... Rcc8 {[%clk 0:00:30]} 41. Kc3
{[%clk 0:00:38.4]} 41... Kd7 {[%clk 0:00:30.7]} 42. Kd3 {[%clk 0:00:34.6]} 42...
Kc6 {[%clk 0:00:31.5]} 43. Rb1 {[%clk 0:00:31.5]} 43... Re8 {[%clk 0:00:32.3]}
44. R1b2 {[%clk 0:00:29.4]} 44... Rf8 {[%clk 0:00:33.6]} 45. Rb1 {[%clk
0:00:29.3]} 45... Rf7 {[%clk 0:00:34.7]} 46. R1b2 {[%clk 0:00:29.5]} 46... Rb7
{[%clk 0:00:35.2]} 47. Rxb7 {[%clk 0:00:29.2]} 47... Bxb7 {[%clk 0:00:37.1]} 48.
Rf2 {[%clk 0:00:29]} 48... Rf8 {[%clk 0:00:37.8]} 49. Kc3 {[%clk 0:00:26.4]}
49... Kd7 {[%clk 0:00:37.2]} 50. Kd3 {[%clk 0:00:27.4]} 50... Kc6 {[%clk
0:00:38.3]} 51. Kc3 {[%clk 0:00:28]} 51... Kd7 {[%clk 0:00:38.8]} 52. Kd3 {[%clk
0:00:29.1]} 52... Kc6 {[%clk 0:00:40.2]} 53. Kc3 {[%clk 0:00:27.1]} 53... Ba6
{[%clk 0:00:42.1]} 54. Rb2 {[%clk 0:00:21.1]} 54... Bb7 {[%clk 0:00:43.1]} 55.
Rf2 {[%clk 0:00:20.1]} 1/2-1/2

[Event "*** Titled Tuesday Blitz"]
[Site "Chess.com"]
[Date "2019.04.02"]
[Round "7"]
[White "Haykos"]
[Black "Twiceblessed"]
[Result "1-0"]
[WhiteElo "2583"]
[BlackElo "2568"]
[TimeControl "180+2"]
[EndTime "15:34:32 PDT"]
[Termination "Haykos won by checkmate"]

1. e4 {[%clk 0:03:01.9]} 1... e5 {[%clk 0:03:00.9]} 2. Nf3 {[%clk 0:03:03.1]}
2... Nc6 {[%clk 0:03:02.2]} 3. Bc4 {[%clk 0:03:04.6]} 3... Bc5 {[%clk
0:03:02.5]} 4. d3 {[%clk 0:03:04.1]} 4... Nf6 {[%clk 0:03:03.7]} 5. O-O {[%clk
0:03:04.8]} 5... O-O {[%clk 0:03:04.3]} 6. Re1 {[%clk 0:03:05.4]} 6... Ng4
{[%clk 0:03:01.1]} 7. Re2 {[%clk 0:03:05.9]} 7... Kh8 {[%clk 0:03:01.8]} 8. h3
{[%clk 0:03:06.2]} 8... f5 {[%clk 0:03:02.8]} 9. exf5 {[%clk 0:03:04.6]} 9...
Nxf2 {[%clk 0:02:50.2]} 10. Rxf2 {[%clk 0:03:05.5]} 10... d5 {[%clk 0:02:51.2]}
11. Bb5 {[%clk 0:03:04.1]} 11... Bxf2+ {[%clk 0:02:48.2]} 12. Kxf2 {[%clk
0:03:04.7]} 12... e4 {[%clk 0:02:47.6]} 13. dxe4 {[%clk 0:03:02.1]} 13... dxe4
{[%clk 0:02:41.4]} 14. Qxd8 {[%clk 0:03:02.4]} 14... Nxd8 {[%clk 0:02:43.3]} 15.
Nd4 {[%clk 0:02:59.9]} 15... c5 {[%clk 0:02:13.8]} 16. Ne2 {[%clk 0:02:58.4]}
16... Bxf5 {[%clk 0:02:14.1]} 17. Kg1 {[%clk 0:02:58.6]} 17... Ne6 {[%clk
0:02:12.8]} 18. Be3 {[%clk 0:02:58.8]} 18... Rad8 {[%clk 0:02:10.9]} 19. Nbc3
{[%clk 0:02:53.8]} 19... Nd4 {[%clk 0:02:11.9]} 20. Ba4 {[%clk 0:02:54.6]} 20...
Bd7 {[%clk 0:02:01.6]} 21. Bxd7 {[%clk 0:02:53.8]} 21... Nxc2 {[%clk 0:02:02.3]}
22. Bxc5 {[%clk 0:02:15.4]} 22... Nxa1 {[%clk 0:02:02.8]} 23. Bxf8 {[%clk
0:02:16.3]} 23... Rxd7 {[%clk 0:02:04.1]} 24. Nxe4 {[%clk 0:02:10.7]} 24... Nc2
{[%clk 0:02:01.7]} 25. Bd6 {[%clk 0:01:51.1]} 25... Ne1 {[%clk 0:01:57]} 26. Nf4
{[%clk 0:01:36.5]} 26... Rf7 {[%clk 0:01:51.2]} 27. h4 {[%clk 0:01:22.4]} 27...
Rf5 {[%clk 0:01:43.1]} 28. g4 {[%clk 0:00:45.8]} 28... Ra5 {[%clk 0:01:42.5]}
29. Nc3 {[%clk 0:00:46.9]} 29... Nf3+ {[%clk 0:01:37.8]} 30. Kf2 {[%clk
0:00:45.7]} 30... Nxh4 {[%clk 0:01:38.8]} 31. Ke3 {[%clk 0:00:43.7]} 31... Ng6
{[%clk 0:01:18.8]} 32. Nxg6+ {[%clk 0:00:44.4]} 32... hxg6 {[%clk 0:01:20.7]}
33. Ke4 {[%clk 0:00:38.7]} 33... Kg8 {[%clk 0:01:19.5]} 34. b4 {[%clk
0:00:38.3]} 34... Ra3 {[%clk 0:01:16.7]} 35. Be5 {[%clk 0:00:39.4]} 35... Kf7
{[%clk 0:01:13.8]} 36. b5 {[%clk 0:00:36.1]} 36... a6 {[%clk 0:00:56.4]} 37. b6
{[%clk 0:00:32.6]} 37... Ra5 {[%clk 0:00:51.5]} 38. Kd4 {[%clk 0:00:28.5]} 38...
g5 {[%clk 0:00:46.2]} 39. a4 {[%clk 0:00:25.2]} 39... g6 {[%clk 0:00:41]} 40.
Bd6 {[%clk 0:00:22.6]} 40... Ke6 {[%clk 0:00:32.1]} 41. Bc5 {[%clk 0:00:23.6]}
41... Kd7 {[%clk 0:00:31.2]} 42. Kd5 {[%clk 0:00:24.1]} 42... Kc8 {[%clk
0:00:23.3]} 43. Kd6 {[%clk 0:00:24.2]} 43... Kb8 {[%clk 0:00:21.3]} 44. Bb4
{[%clk 0:00:25]} 44... Ka8 {[%clk 0:00:16.4]} 45. Bxa5 {[%clk 0:00:25.8]} 45...
Kb8 {[%clk 0:00:18.3]} 46. Kd7 {[%clk 0:00:26]} 46... Ka8 {[%clk 0:00:19.5]} 47.
Nd5 {[%clk 0:00:26.9]} 47... Kb8 {[%clk 0:00:20.4]} 48. Bd2 {[%clk 0:00:26.8]}
48... Ka8 {[%clk 0:00:21.5]} 49. Nc7+ {[%clk 0:00:27.6]} 49... Kb8 {[%clk
0:00:23.4]} 50. Nxa6+ {[%clk 0:00:28.8]} 50... Ka8 {[%clk 0:00:25.3]} 51. Nc5
{[%clk 0:00:29.2]} 51... Kb8 {[%clk 0:00:27.2]} 52. a5 {[%clk 0:00:30]} 52...
Ka8 {[%clk 0:00:29.1]} 53. Bxg5 {[%clk 0:00:31.2]} 53... Kb8 {[%clk 0:00:30.5]}
54. Bf4+ {[%clk 0:00:31.2]} 54... Ka8 {[%clk 0:00:32.4]} 55. a6 {[%clk
0:00:32.4]} 55... bxa6 {[%clk 0:00:33.2]} 56. b7+ {[%clk 0:00:33.5]} 56... Ka7
{[%clk 0:00:34.6]} 57. b8=Q# {[%clk 0:00:34]} 1-0

[Event "*** Titled Tuesday Blitz"]
[Site "Chess.com"]
[Date "2019.04.02"]
[Round "7"]
[White "eldur16"]
[Black "nurgyulsalimova"]
[Result "0-1"]
[WhiteElo "2493"]
[BlackElo "2534"]
[TimeControl "180+2"]
[EndTime "15:34:44 PDT"]
[Termination "nurgyulsalimova won by resignation"]

1. e4 {[%clk 0:03:01.9]} 1... e5 {[%clk 0:02:59.4]} 2. Nf3 {[%clk 0:03:02.2]}
2... Nc6 {[%clk 0:03:00.5]} 3. Bb5 {[%clk 0:03:02.8]} 3... a6 {[%clk 0:03:01.4]}
4. Ba4 {[%clk 0:03:03.5]} 4... Nf6 {[%clk 0:03:02.7]} 5. O-O {[%clk 0:03:04.5]}
5... b5 {[%clk 0:03:04]} 6. Bb3 {[%clk 0:03:04.9]} 6... Bc5 {[%clk 0:03:05.7]}
7. a4 {[%clk 0:03:03.3]} 7... Rb8 {[%clk 0:03:06.2]} 8. c3 {[%clk 0:03:03.8]}
8... d6 {[%clk 0:03:07]} 9. d4 {[%clk 0:03:03.6]} 9... Bb6 {[%clk 0:03:08.3]}
10. a5 {[%clk 0:02:54.1]} 10... Ba7 {[%clk 0:03:09.1]} 11. Be3 {[%clk
0:02:53.3]} 11... Bg4 {[%clk 0:02:56.4]} 12. d5 {[%clk 0:02:37.6]} 12... Bxe3
{[%clk 0:02:56]} 13. fxe3 {[%clk 0:02:35.2]} 13... Ne7 {[%clk 0:02:53]} 14. Nbd2
{[%clk 0:02:35.7]} 14... O-O {[%clk 0:02:49.3]} 15. Qe1 {[%clk 0:02:36.1]} 15...
Ng6 {[%clk 0:02:24.8]} 16. h3 {[%clk 0:02:21.8]} 16... Bc8 {[%clk 0:02:12]} 17.
Bc2 {[%clk 0:02:13.3]} 17... b4 {[%clk 0:01:35]} 18. Rf2 {[%clk 0:01:59.5]}
18... bxc3 {[%clk 0:01:31.4]} 19. bxc3 {[%clk 0:01:59.8]} 19... Nd7 {[%clk
0:01:28.5]} 20. Nf1 {[%clk 0:01:47.8]} 20... Nc5 {[%clk 0:01:28.3]} 21. Ng3
{[%clk 0:01:47.9]} 21... Bd7 {[%clk 0:01:19.7]} 22. Nf5 {[%clk 0:01:46.5]} 22...
Rb2 {[%clk 0:01:18.5]} 23. Qc1 {[%clk 0:01:32.7]} 23... Rb5 {[%clk 0:01:02.4]}
24. g3 {[%clk 0:01:14.6]} 24... Qb8 {[%clk 0:00:37.2]} 25. h4 {[%clk 0:01:12]}
25... h5 {[%clk 0:00:37.4]} 26. Ng5 {[%clk 0:01:01.3]} 26... f6 {[%clk
0:00:30.8]} 27. Qd1 {[%clk 0:00:52.2]} 27... fxg5 {[%clk 0:00:27.1]} 28. Qxh5
{[%clk 0:00:52]} 28... Be8 {[%clk 0:00:13.6]} 29. Qxg5 {[%clk 0:00:51.7]} 29...
Rb2 {[%clk 0:00:08.9]} 30. h5 {[%clk 0:00:49.3]} 30... Rxc2 {[%clk 0:00:10.2]}
31. Rxc2 {[%clk 0:00:48.8]} 31... Nxe4 {[%clk 0:00:11.2]} 32. Qg4 {[%clk
0:00:32]} 32... Nf6 {[%clk 0:00:12.5]} 33. Qd1 {[%clk 0:00:27.8]} 33... Qc8
{[%clk 0:00:08.4]} 34. Rf2 {[%clk 0:00:19.5]} 34... Ne4 {[%clk 0:00:06.1]} 35.
hxg6 {[%clk 0:00:16.6]} 35... Rxf5 {[%clk 0:00:07.5]} 36. Rg2 {[%clk 0:00:16.9]}
36... Bxg6 {[%clk 0:00:07.9]} 37. Qe2 {[%clk 0:00:15.1]} 37... Nxc3 {[%clk
0:00:08.2]} 38. Qc4 {[%clk 0:00:15.5]} 38... Nb5 {[%clk 0:00:08.4]} 39. Rc1
{[%clk 0:00:14.5]} 39... Qf8 {[%clk 0:00:07.7]} 40. Qg4 {[%clk 0:00:13.3]} 40...
Qf7 {[%clk 0:00:08]} 41. e4 {[%clk 0:00:13.2]} 41... Rf6 {[%clk 0:00:04.3]} 42.
Qc8+ {[%clk 0:00:13.8]} 42... Qf8 {[%clk 0:00:05.8]} 43. Qxa6 {[%clk 0:00:14.4]}
43... Nd4 {[%clk 0:00:07.2]} 44. Qd3 {[%clk 0:00:08]} 44... Nf3+ {[%clk
0:00:08.6]} 45. Kh1 {[%clk 0:00:08.1]} 45... Bxe4 {[%clk 0:00:08.1]} 46. Qxe4
{[%clk 0:00:06.2]} 46... Rh6+ {[%clk 0:00:09.6]} 0-1